{"text_format":"1","workbook":"xlsx","n_sheets":7,"sheets":["SAISIE GENERAL","Feuil2","Feuil3","CLASSEMENT  SCRATCH","TYPE ARMES","MEILLEURS SCORES","Feuil1"],"not_rendered":{"charts":0,"images":0,"macros":1,"external_links":0,"defined_names":3,"comments":1,"pivot_tables":0},"unopened":[],"bounds":{"document_bytes":16777216,"sheet_cells":100000,"rows_first":2000,"rows_last":500,"rows_between":2000,"halvings":0,"cell_chars":16384,"cell_head_chars":4096},"cells_cut":0,"cells_raw":0,"read":"whole","date_system":"1900"}

{"sheet":"SAISIE GENERAL","index":0,"n_rows":51,"n_cols":42,"rows_kept":51,"cut":false,"hidden":false,"merged":[[1,5,1,14],[1,15,1,24],[1,25,1,34],[50,4,50,5]]}
[]
[null,"SERIE","POSTES","NOMS","cat","precision",null,null,null,null,null,null,null,null,null,"vitesse 20 s",null,null,null,null,null,null,null,null,null,"vitesse 10 s",null,null,null,null,null,null,null,null,null,"total","prec","vit 20s","vit 10s","Nb gong","Total gong","Mouches"]
[1,1,"POSTE1","GUYOT Jimmy","P",9,9,7,7,6,6,7,5,5,1,10,9,7,7,7,7,7,5,5,null,9,8,8,7,8,6,5,null,null,null,{"$f":"AK3+AL3+AM3+AO3","v":197},{"$f":"SUM(F3:O3)","v":62},{"$f":"SUM(P3:Y3)","v":64},{"$f":"SUM(Z3:AI3)","v":51},2,{"$f":"AN3*10","v":20}]
[{"$f":"A3+1","v":2},1,"POSTE2","FALCO Mathieu","P",10,10,9,7,7,6,5,4,3,null,10,10,9,9,9,9,8,8,6,null,10,10,9,9,8,8,7,7,6,null,223,61,78,74,1,10,4]
[{"$f":"A4+1","v":3},1,"POSTE3","MERCIER Stéphane","P",10,9,9,8,8,9,6,6,6,5,10,10,10,10,10,9,9,8,8,7,10,10,10,10,9,9,9,7,7,6,294,76,91,87,4,40,3]
[4,1,"POSTE4","ANNONIER LOUIS","P",9,8,8,8,8,8,8,8,7,5,10,10,10,10,9,9,9,8,7,null,10,10,9,9,9,9,9,8,7,6,275,77,82,86,3,30,3]
[5,1,"POSTE5","NICKEL Franck","P",10,10,10,10,9,9,9,9,9,8,10,10,10,10,9,9,9,9,9,8,10,10,10,9,9,9,9,9,8,7,316,93,93,90,4,40,4]
[6,1,"POSTE6","PIRIOU Maêl","P",10,10,10,10,9,9,9,7,4,null,10,10,10,10,10,10,9,9,9,null,10,10,10,10,10,9,8,7,6,6,321,78,87,86,7,70,4]
[7,1,"POSTE7","MONAÏ Sébastien","P",10,9,8,8,7,6,6,null,null,null,9,9,8,7,6,6,6,5,null,null,10,9,8,7,7,7,6,5,null,null,199,54,56,59,3,30,2]
[8,1,"POSTE8","SERCAN Xavier","P",9,9,9,9,8,8,6,6,5,5,10,10,10,10,9,8,8,7,7,6,10,10,10,9,8,6,null,null,null,null,222,74,85,53,1,10]
[9,1,"POSTE9","TRAVERS Cédric","P",9,9,8,7,7,7,7,7,6,2,9,9,8,7,6,5,5,5,null,null,10,10,9,9,8,8,8,8,7,5,225,69,54,82,2,20]
[10,1,"POSTE10","DUPUY Heinrich","P",10,10,9,8,8,7,6,5,4,3,10,9,8,8,7,7,7,5,5,null,10,9,6,6,5,5,5,null,null,null,202,70,66,46,2,20]
[11,1,"POSTE11",null,null,null,null,null,null,null,null,null,null,null,null,null,null,null,null,null,null,null,null,null,null,null,null,null,null,null,null,null,null,null,null,0,0,0,0,null,0]
[12,1,"POSTE12",null,null,null,null,null,null,null,null,null,null,null,null,null,null,null,null,null,null,null,null,null,null,null,null,null,null,null,null,null,null,null,null,0,0,0,0,null,0]
[13,1,"POSTE13",null,null,null,null,null,null,null,null,null,null,null,null,null,null,null,null,null,null,null,null,null,null,null,null,null,null,null,null,null,null,null,null,0,0,0,0,null,0]
[14,1,"POSTE14",null,null,null,null,null,null,null,null,null,null,null,null,null,null,null,null,null,null,null,null,null,null,null,null,null,null,null,null,null,null,null,null,0,0,0,0,null,0]
[15,1,"POSTE15",null,null,null,null,null,null,null,null,null,null,null,null,null,null,null,null,null,null,null,null,null,null,null,null,null,null,null,null,null,null,null,null,0,0,0,0,null,0]
[16,1,"POSTE 16",null,null,null,null,null,null,null,null,null,null,null,null,null,null,null,null,null,null,null,null,null,null,null,null,null,null,null,null,null,null,null,null,0,0,0,0,null,0]
[17,1,"POSTE 17",null,null,null,null,null,null,null,null,null,null,null,null,null,null,null,null,null,null,null,null,null,null,null,null,null,null,null,null,null,null,null,null,0,0,0,0,null,0]
[18,1,"POSTE 18",null,null,null,null,null,null,null,null,null,null,null,null,null,null,null,null,null,null,null,null,null,null,null,null,null,null,null,null,null,null,null,null,0,0,0,0,null,0]
[19,1,"POSTE 19",null,null,null,null,null,null,null,null,null,null,null,null,null,null,null,null,null,null,null,null,null,null,null,null,null,null,null,null,null,null,null,null,0,0,0,0,null,0]
[20,1,"POSTE 20",null,null,null,null,null,null,null,null,null,null,null,null,null,null,null,null,null,null,null,null,null,null,null,null,null,null,null,null,null,null,null,null,0,0,0,0,null,0]
[21,2,"POSTE 1",null,null,null,null,null,null,null,null,null,null,null,null,null,null,null,null,null,null,null,null,null,null,null,null,null,null,null,null,null,null,null,null,0,0,0,0,null,0]
[22,2,"POSTE 2",null,null,null,null,null,null,null,null,null,null,null,null,null,null,null,null,null,null,null,null,null,null,null,null,null,null,null,null,null,null,null,null,0,0,0,0,null,0]
[23,2,"POSTE 3",null,null,null,null,null,null,null,null,null,null,null,null,null,null,null,null,null,null,null,null,null,null,null,null,null,null,null,null,null,null,null,null,0,0,0,0,null,0]
[24,2,"POSTE 4",null,null,null,null,null,null,null,null,null,null,null,null,null,null,null,null,null,null,null,null,null,null,null,null,null,null,null,null,null,null,null,null,0,0,0,0,null,0]
[25,2,"POSTE 5",null,null,null,null,null,null,null,null,null,null,null,null,null,null,null,null,null,null,null,null,null,null,null,null,null,null,null,null,null,null,null,null,0,0,0,0,null,0]
[26,2,"POSTE 6",null,null,null,null,null,null,null,null,null,null,null,null,null,null,null,null,null,null,null,null,null,null,null,null,null,null,null,null,null,null,null,null,0,0,0,0,null,0]
[27,2,"POSTE 7",null,null,null,null,null,null,null,null,null,null,null,null,null,null,null,null,null,null,null,null,null,null,null,null,null,null,null,null,null,null,null,null,0,0,0,0,null,0]
[28,2,"POSTE 8",null,null,null,null,null,null,null,null,null,null,null,null,null,null,null,null,null,null,null,null,null,null,null,null,null,null,null,null,null,null,null,null,0,0,0,0,null,0]
[29,2,"POSTE 9",null,null,null,null,null,null,null,null,null,null,null,null,null,null,null,null,null,null,null,null,null,null,null,null,null,null,null,null,null,null,null,null,0,0,0,0,null,0]
[30,2,"POSTE 10",null,null,null,null,null,null,null,null,null,null,null,null,null,null,null,null,null,null,null,null,null,null,null,null,null,null,null,null,null,null,null,null,0,0,0,0,null,0]
[31,2,"POSTE 11",null,null,null,null,null,null,null,null,null,null,null,null,null,null,null,null,null,null,null,null,null,null,null,null,null,null,null,null,null,null,null,null,0,0,0,0,null,0]
[32,2,"POSTE 12",null,null,null,null,null,null,null,null,null,null,null,null,null,null,null,null,null,null,null,null,null,null,null,null,null,null,null,null,null,null,null,null,0,0,0,0,null,{"$f":"AN34*10","v":0}]
[33,2,"POSTE 13",null,null,null,null,null,null,null,null,null,null,null,null,null,null,null,null,null,null,null,null,null,null,null,null,null,null,null,null,null,null,null,null,0,0,0,0,null,0]
[34,2,"POSTE 14",null,null,null,null,null,null,null,null,null,null,null,null,null,null,null,null,null,null,null,null,null,null,null,null,null,null,null,null,null,null,null,null,0,0,0,0,null,0]
[35,2,"POSTE 15",null,null,null,null,null,null,null,null,null,null,null,null,null,null,null,null,null,null,null,null,null,null,null,null,null,null,null,null,null,null,null,null,0,0,0,0,null,0]
[36,2,"POSTE 16",null,null,null,null,null,null,null,null,null,null,null,null,null,null,null,null,null,null,null,null,null,null,null,null,null,null,null,null,null,null,null,null,0,0,0,0,null,0]
[37,2,"POSTE 17",null,null,null,null,null,null,null,null,null,null,null,null,null,null,null,null,null,null,null,null,null,null,null,null,null,null,null,null,null,null,null,null,0,0,0,0,null,0]
[38,2,"POSTE 18",null,null,null,null,null,null,null,null,null,null,null,null,null,null,null,null,null,null,null,null,null,null,null,null,null,null,null,null,null,null,null,null,0,0,0,0,null,0]
[39,2,"POSTE 19",null,null,null,null,null,null,null,null,null,null,null,null,null,null,null,null,null,null,null,null,null,null,null,null,null,null,null,null,null,null,null,null,0,0,0,0]
[40,2,"POSTE 20",null,null,null,null,null,null,null,null,null,null,null,null,null,null,null,null,null,null,null,null,null,null,null,null,null,null,null,null,null,null,null,null,0,null,0,0]
[]
[]
[null,null,null,"NBRE DE SERIES",1]
[]
[null,null,null,"PISTOLET",{"$f":"COUNTIF(E3:E42,\"P\")","v":10}]
[null,null,null,"REVOLVER",{"$f":"COUNTIF(E3:E43,\"R\")","v":0}]
[null,null,null,"NBRE TOTAL DE TIREURS",{"$f":"COUNTA(D3:D42)","v":10}]
[]
[null,null,null,"TOTAL A ENCAISSER",{"$f":"E49*1000","v":10000}]

{"sheet":"Feuil2","index":1,"n_rows":0,"n_cols":0,"rows_kept":0,"cut":false,"hidden":false,"merged":[]}

{"sheet":"Feuil3","index":2,"n_rows":0,"n_cols":0,"rows_kept":0,"cut":false,"hidden":false,"merged":[]}

{"sheet":"CLASSEMENT  SCRATCH","index":3,"n_rows":45,"n_cols":31,"rows_kept":45,"cut":false,"hidden":false,"merged":[[3,4,3,8],[3,19,3,23],[7,27,7,29],[26,27,26,29]]}
[]
[]
[]
[null,null,null,null,"nombre de points",null,null,null,null,null,null,null,null,null,null,null,null,null,null,"nombre de points"]
[null,null,"Classement","NOMS","cat","prec","vit 20s","vit 10s","Nb gong","total","Mouches",null,null,null,null,null,null,null,"NOMS","cat","prec","vit 20s","vit 10s","Nb gong","total","Mouches"]
[null,null,1,"PIRIOU Maêl","P",78,87,86,7,321,4]
[null,null,{"$f":"C6+1","v":2},"NICKEL Franck","P",93,93,90,4,316,4]
[null,null,{"$f":"C7+1","v":3},"MERCIER Stéphane","P",76,91,87,4,294,3,null,null,null,null,null,null,null,null,null,null,null,null,null,0,null,null,null,null,null,"classement Femmes"]
[null,null,4,"ANNONIER LOUIS","P",77,82,86,3,275,3,null,null,null,null,null,null,null,null,null,null,null,null,null,0]
[null,null,5,"TRAVERS Cédric","P",69,54,82,2,225,null,null,null,null,null,null,null,null,null,null,null,null,null,null,0]
[null,null,6,"FALCO Mathieu","P",61,78,74,1,223,4,null,null,null,null,null,null,null,null,null,null,null,null,null,0]
[null,null,7,"SERCAN Xavier","P",74,85,53,1,222,null,null,null,null,null,null,null,null,null,null,null,null,null,null,0]
[null,null,8,"DUPUY Heinrich","P",70,66,46,2,202,null,null,null,null,null,null,null,null,null,null,null,null,null,null,0]
[null,null,9,"MONAÏ Sébastien","P",54,56,59,3,199,2,null,null,null,null,null,null,null,null,null,null,null,null,null,0]
[null,null,10,"GUYOT Jimmy","P",62,64,51,2,197,null,null,null,null,null,null,null,null,null,null,null,null,null,null,0]
[null,null,11,null,null,0,0,0,null,0,null,null,null,null,null,null,null,null,null,null,null,null,null,null,0]
[null,null,12,null,null,0,0,0,null,0,null,null,null,null,null,null,null,null,null,null,null,null,null,null,0]
[null,null,13,null,null,0,0,0,null,0,null,null,null,null,null,null,null,null,null,null,null,null,null,null,0]
[null,null,14,null,null,0,0,0,null,0,null,null,null,null,null,null,null,null,null,null,null,null,null,null,0]
[null,null,15,null,null,0,0,0,null,0,null,null,null,null,null,null,null,null,null,null,null,null,null,null,0]
[null,null,16,null,null,0,0,0,null,0,null,null,null,null,null,null,null,null,null,null,null,null,null,null,0]
[null,null,17,null,null,0,0,0,null,0,null,null,null,null,null,null,null,null,null,null,null,null,null,null,0]
[null,null,18,null,null,0,0,0,null,0,null,null,null,null,null,null,null,null,null,null,null,null,null,null,0]
[null,null,19,null,null,0,0,0,null,0,null,null,null,null,null,null,null,null,null,null,null,null,null,null,0]
[null,null,20,null,null,0,0,0,null,0,null,null,null,null,null,null,null,null,null,null,null,null,null,null,0]
[null,null,21,null,null,0,0,0,null,0,null,null,null,null,null,null,null,null,null,null,null,null,null,null,0]
[null,null,22,null,null,0,0,0,null,0,null,null,null,null,null,null,null,null,null,null,null,null,null,null,0,null,null,null,null,null,"classement Hommes"]
[null,null,23,null,null,0,0,0,null,0,null,null,null,null,null,null,null,null,null,null,null,null,null,null,0]
[null,null,24,null,null,0,0,0,null,0,null,null,null,null,null,null,null,null,null,null,null,null,null,null,0]
[null,null,25,null,null,0,0,0,null,0,null,null,null,null,null,null,null,null,null,null,null,null,null,null,0]
[null,null,26,null,null,0,0,0,null,0,null,null,null,null,null,null,null,null,null,null,null,null,null,null,0]
[null,null,27,null,null,0,0,0,null,0,null,null,null,null,null,null,null,null,null,null,null,null,null,null,0]
[null,null,28,null,null,0,0,0,null,0,null,null,null,null,null,null,null,null,null,null,null,null,null,null,0]
[null,null,29,null,null,0,0,0,null,0,null,null,null,null,null,null,null,null,null,null,null,null,null,null,0]
[null,null,30,null,null,0,0,0,null,0,null,null,null,null,null,null,null,null,null,null,null,null,null,null,0]
[null,null,31,null,null,0,0,0,null,0,null,null,null,null,null,null,null,null,null,null,null,null,null,null,0]
[null,null,32,null,null,0,0,0,null,0,null,null,null,null,null,null,null,null,null,null,null,null,null,null,0]
[null,null,33,null,null,0,0,0,null,0,null,null,null,null,null,null,null,null,null,null,null,null,null,null,0]
[null,null,34,null,null,0,0,0,null,0,null,null,null,null,null,null,null,null,null,null,null,null,null,null,0]
[null,null,35,null,null,0,0,0,null,0,null,null,null,null,null,null,null,null,null,null,null,null,null,null,0]
[null,null,36,null,null,0,0,0,null,0,null,null,null,null,null,null,null,null,null,null,null,null,null,null,0]
[null,null,37,null,null,0,0,0,null,0,null,null,null,null,null,null,null,null,null,null,null,null,null,null,0]
[null,null,38,null,null,0,0,0,null,0,null,null,null,null,null,null,null,null,null,null,null,null,null,null,0]
[null,null,39,null,null,0,0,0,null,0,null,null,null,null,null,null,null,null,null,null,null,null,null,null,0]
[null,null,40,null,null,null,0,0,null,0,null,null,null,null,null,null,null,null,null,null,null,null,null,null,0]

{"sheet":"TYPE ARMES","index":4,"n_rows":46,"n_cols":11,"rows_kept":46,"cut":false,"hidden":false,"merged":[[4,4,4,8],[6,0,6,1],[23,0,23,1]]}
[]
[]
[]
[]
[null,null,null,null,"nombre de points"]
[null,null,"Classement","NOMS","cat","prec",null,"vit 10s","Nb gong","total","Mouches"]
[]
[]
[null,null,null,null,null,0,0,0,null,0]
[null,null,null,null,null,0,0,0,null,0]
[null,null,null,null,null,0,0,0,null,0]
[null,null,null,null,null,0,0,0,null,0]
[null,null,null,null,null,0,0,0,null,0]
[null,null,null,null,null,0,0,0,null,0]
[null,null,null,null,null,0,0,0,null,0]
[null,null,null,null,null,0,0,0,null,0]
[null,null,null,null,null,0,0,0,null,0]
[null,null,null,null,null,0,0,0,null,0]
[null,null,null,null,null,0,0,0,null,0]
[null,null,null,null,null,0,0,0,null,0]
[null,null,null,null,null,0,0,0,null,0]
[null,null,null,null,null,0,0,0,null,0]
[null,null,null,null,null,0,0,0,null,0]
[null,null,null,null,null,0,0,0,null,0]
[null,null,null,null,null,0,0,0,null,0]
[null,null,null,null,null,0,0,0,null,0]
[null,null,null,null,null,0,0,0,null,0]
[null,null,null,null,null,0,0,0,null,0]
[null,null,null,null,null,0,0,0,null,0]
[null,null,null,null,null,0,0,0,null,0]
[null,null,null,null,null,0,0,0,null,0]
[null,null,null,null,null,0,0,0,null,0]
[null,null,null,null,null,0,0,0,null,0]
[null,null,null,null,null,0,0,0,null,0]
[null,null,null,null,null,0,0,0,null,0]
[null,null,null,null,null,0,0,0,null,0]
[null,null,null,null,null,0,0,0,null,0]
[null,null,null,null,null,0,0,0,null,0]
[null,null,null,null,null,0,0,0,null,0]
[null,null,null,null,null,0,0,0,null,0]
[null,null,null,null,null,0,0,0,null,0]
[null,null,null,null,null,0,0,0,null,0]
[null,null,null,null,null,0,0,0,null,0]
[null,null,null,null,null,0,0,0,null,0]
[null,null,null,null,null,0,0,0,null,0]
[null,null,{"$f":"C45+1","v":1},null,null,null,0,0,null,0]

{"sheet":"MEILLEURS SCORES","index":5,"n_rows":43,"n_cols":19,"rows_kept":43,"cut":false,"hidden":false,"merged":[[1,0,1,2],[1,4,1,6],[1,8,1,10],[1,12,1,14],[1,16,1,18]]}
[]
["PRECISION",null,null,null,"VITESSE 20 SECONDES",null,null,null,"VITESSE 10 SECONDES",null,null,null,"GONGS",null,null,null,"NOMBRE DE MOUCHES"]
[]
["NOMS","cat","prec",null,"NOMS","cat","vit 20s",null,"NOMS","cat","vit 10s",null,"NOMS","cat","Nb gong",null,"NOMS","cat","Mouches"]
["NICKEL FRANCK","P",93,null,"NICKEL FRANCK","P",93,null,"NICKEL FRANCK","P",90,null,"PIRIOU MAËL","P",7,null,"PIRIOU MAËL","P",4]
["PIRIOU MAËL","P",78,null,"MERCIER STEPHANE","P",91,null,"MERCIER STEPHANE","P",87,null,"NICKEL FRANCK","P",4,null,"NICKEL FRANCK","P",4]
["ANNONIER LOUIS","P",77,null,"PIRIOU MAËL","P",87,null,"PIRIOU MAËL","P",86,null,"MERCIER STEPHANE","P",4,null,"FALCO MATHIEU","P",4]
["MERCIER STEPHANE","P",76,null,"SERCAN XAVIER","P",85,null,"ANNONIER LOUIS","P",86,null,"MONAÏ SEBASTIEN ","P",3,null,"MERCIER STEPHANE","P",3]
["SERCAN XAVIER","P",74,null,"ANNONIER LOUIS","P",82,null,"TRAVERS CEDRIC","P",82,null,"ANNONIER LOUIS","P",3,null,"ANNONIER LOUIS","P",3]
["DUPUY HEINRICH","P",70,null,"FALCO MATHIEU","P",78,null,"FALCO MATHIEU","P",74,null,"GUYOT JIMMY","P",2,null,"MONAÏ  SEBASTIEN","P",2]
["TRAVERS CEDRIC","P",69,null,"DUPUY HEINRICH","P",66,null,"DUPUY HEINRICH","P",46,null,"DUPUY HEINRICH","P",2,null,"DUPUY HEINRICH","P"]
["GUYOT JIMMY","P",62,null,"GUYOT JIMMY","P",64,null,"MONAÏ SEBASTIEN ","P",59,null,"TRAVERS CEDRIC ","P",2,null,"TRAVERS CEDRIC ","P"]
["FALCO MATHIEU","P",61,null,"MONAÏ SEBASTIEN ","P",56,null,"SERCAN XAVIER","P",53,null,"FALCO MATHIEU","P",1,null,"GUYOT JIMMY","P"]
["MONAÏ SEBASTIEN ","P",54,null,"TRAVERS CEDRIC","P",54,null,"GUYOT JIMMY","P",51,null,"SERCAN XAVIER","P",1,null,"SERCAN XAVIER","P"]
[null,null,0,null,null,null,0,null,null,null,0]
[null,null,0,null,null,null,0,null,null,null,0]
[null,null,0,null,null,null,0,null,null,null,0]
[null,null,0,null,null,null,0,null,null,null,0]
[null,null,0,null,null,null,0,null,null,null,0]
[null,null,0,null,null,null,0,null,null,null,0]
[null,null,0,null,null,null,0,null,null,null,0]
[null,null,0,null,null,null,0,null,null,null,0]
[null,null,0,null,null,null,0,null,null,null,0]
[null,null,0,null,null,null,0,null,null,null,0]
[null,null,0,null,null,null,0,null,null,null,0]
[null,null,0,null,null,null,0,null,null,null,0]
[null,null,0,null,null,null,0,null,null,null,0]
[null,null,0,null,null,null,0,null,null,null,0]
[null,null,0,null,null,null,0,null,null,null,0]
[null,null,0,null,null,null,0,null,null,null,0]
[null,null,0,null,null,null,0,null,null,null,0]
[null,null,0,null,null,null,0,null,null,null,0]
[null,null,0,null,null,null,0,null,null,null,0]
[null,null,0,null,null,null,null,null,null,null,0]
[null,null,0,null,null,null,null,null,null,null,0]
[null,null,0,null,null,null,null,null,null,null,0]
[null,null,0,null,null,null,null,null,null,null,0]
[null,null,0,null,null,null,null,null,null,null,0]
[null,null,0,null,null,null,null,null,null,null,0]
[null,null,0,null,null,null,null,null,null,null,0]
[null,null,0,null,null,null,null,null,null,null,0]
[null,null,0,null,null,null,null,null,null,null,0]
[null,null,0,null,null,null,null,null,null,null,0]

{"sheet":"Feuil1","index":6,"n_rows":61,"n_cols":2,"rows_kept":61,"cut":false,"hidden":false,"merged":[]}
["AMICE Denis ","R"]
["ADI Jean Christophe","P"]
["ALINE Matt"]
["ALLAIGRE Didier"]
["ALLEMAND Maëlys"]
["ALLEMAND Michaël"]
["AMICE Rémy"]
["ANNONIER LOUIS"]
["ANSQUER Hervé"]
["ANTIN Guillaume"]
["ANTIN Marcel"]
["APPAGANOU Jocelyne"]
["BAUDOUIN Bernard"]
["BAUDOUIN Nanci"]
["BERNALEAU José"]
["BERNALEAU Vanessa"]
["BIOSA Jean Claude"]
["BLANC ARIEL"]
["BLANC Dominique"]
["BOISSON Jean-Guy"]
["BONNARDEL Jérôme"]
["BOURDIL Bernard"]
["BRIDENNE Daniel"]
["CHANIER Jean Gabryel"]
["CLAPIER Philippe"]
["COULON Georges"]
["DEMARET Bernard"]
["DUCOLI Stéphane"]
["DUPUY Heinrich"]
["DURET Frédéric"]
["DURIF Sandra"]
["FAGEAU Fred"]
["FALCO Mathieu"]
["FREZET Antoine"]
["GARCIA Yann"]
["GOMARD Jocelin"]
["GOSSET Christophe"]
["GUILLEMARD Patrice"]
["GUYOT Jimmy"]
["KEM SENG Bruno"]
["KEM SENG Eric"]
["KEM SENG Florian"]
["KEM-SENG Marie-Annick"]
["LECOURIEUX Renaud"]
["LENOBLE Edouard"]
["LIMOUSIN Cédric"]
["LOUAULT Pierre-Henri"]
["MAGNIER Christian"]
["MANA Moana"]
["MERCIER Stéphane"]
["MONAÏ Sébastien"]
["MOREZZI Alexandro"]
["NICKEL Franck"]
["O'CONNOR Michel"]
["PERRET Olivier"]
["PIRIOU Maêl"]
["SCHMITT Alain"]
["SERCAN Xavier"]
["TRAVERS Cédric"]
["VADE Philippe"]
["VIDAILLAC Philippe"]